Cogmind - Beta 16 @@@ ROGUE MODE // 2026.01.23 @ 12:00:52 Player: shapeshifter Result: Core destroyed Performance ------------- Evolutions (6) 3000 Regions Visited (21) 4200 Robots Destroyed (196) 980 Value Destroyed (8732) 8732 Prototype IDs (49) 980 Alien Tech Used (0) 0 Bonus (5468) 5468 TOTAL SCORE: 23360 Bonus ------- High Alert Combat Kills 712 Follower Combat Kills 996 Entered DSFs 500 Aligned with FarCom 300 Met Imprinter 300 Destroyed Z-Imprinter 1000 Acquired ECA 300 Met Warlord at Base 500 MAIN.C Attacked Warlord 500 Warlord Defense Kills 1520 Friendly Fire -1160 Cogmind --------- Core Integrity 0/1150 Matter 158/300 Energy 488/800 System Corruption 7% Temperature Critical (680) Movement Core (1150) Ox22 Location -4/Factory Parts ------- > --- POWER (3) -------- Antimatter Reactor Antimatter Reactor Improved Quantum Reactor > --- PROPULSION (7) --- (None) > --- UTILITY (4) ------ Graphene Brace Thermal Barrier Improved Force Field > --- WEAPON (5) ------- Phase Gun > --- INVENTORY (5) ---- Experimental Matter Compressor (500) Weapon Mount Hacking Drone Bay (1/1) Phasing AFG GAL Module Peak State ------------ > --- POWER ------------ Zionite Light DM Reactor Vortex Chain Reactor > --- PROPULSION ------- Armored Medium Treads Armored Medium Treads Heavy Treads Heavy Treads Advanced Medium Treads > --- UTILITY ---------- Advanced Cooling System Huge Storage Unit Improved Remote Force Field Hacking Drone Bay > --- WEAPON ----------- Coil Gun Hypervelocity Coil Gun Helical Railgun Helical Railgun > --- INVENTORY -------- Improved Quantum Reactor Superbattery Experimental Matter Compressor Experimental Optical Array Spectral Analyzer Weapon Mount Experimental Core Analyzer Improved Medium Armor Plating Thermal Barrier Ghost Barrier High-powered Tractor Beam Phasing AFG Plasma Storm Firepult Vortex Catalyst Activator RU-N14's Throwing Claymores GAL Module [Rating: 142] Favorites ----------- Power Angular Momentum Engine Engine Angular Momentum Engine Power Core Neutrino Core Reactor Zionite Light DM Reactor Propulsion Armored Treads Treads Armored Treads Utility Large Storage Unit Device Improved Cooling System Storage Large Storage Unit Processor Enhanced Optical Array Hackware Ghost Barrier Protection Improved Medium Armor Plating Weapon Gauss Rifle Energy Gun Medium Laser Energy Cannon Firepult Ballistic Gun Gauss Rifle Ballistic Cannon Bore Cannon Launcher Heavy Shock Bomb Launcher Special Weapon RU-N14's Throwing Claymores Piercing Weapon CR-A16's Pointy Stick Build | -11 -10 -10 -10 -9 -8 -7 -7 -6 -6 -6 -6 -6 -5 -5 -5 -5 -5 -5 -5 -4 -4 ------- Run | Yrd Mat Min Exi Min Mat Fac DSF Fac Low Low Zio Dee Pro Fac Was Fac Upp Upp War Pro Fac Slots Evolved 12 | . . . . . 4 2 . 2 . . . . . 2 . . . . . . 2 Power 2 | . . . . . . 1 . . . . . . . 1 . . . . . . . Propulsion 5 | . . . . . 2 . . 1 . . . . . 1 . . . . . . 1 Utility 2 | . . . . . 1 1 . . . . . . . . . . . . . . . Weapon 3 | . . . . . 1 . . 1 . . . . . . . . . . . . 1 Parts Attached 138 | 7 1 1 . 2 19 2 11 6 3 4 6 10 3 10 6 8 . 1 15 . 23 Power 22 | 1 . 1 . . 1 1 4 1 . 1 . 2 . 2 1 1 . . 1 . 5 Engine 8 | 1 . 1 . . 1 . 2 1 . 1 . . . 1 . . . . . . . Core 6 | . . . . . . 1 2 . . . . . . 1 . 1 . . . . 1 Reactor 8 | . . . . . . . . . . . . 2 . . 1 . . . 1 . 4 Propulsion 31 | 2 . . . 1 6 . 5 2 . 1 1 2 . 4 2 1 . . 1 . 3 Treads 31 | 2 . . . 1 6 . 5 2 . 1 1 2 . 4 2 1 . . 1 . 3 Leg . | . . . . . . . . . . . . . . . . . . . . . . Wheel . | . . . . . . . . . . . . . . . . . . . . . . Hover . | . . . . . . . . . . . . . . . . . . . . . . Flight . | . . . . . . . . . . . . . . . . . . . . . . Utility 47 | 2 1 . . . 6 1 2 2 2 . 2 4 2 3 . 3 . 1 6 . 10 Device 24 | 1 . . . . 2 1 2 1 . . 2 2 1 2 . 1 . . 4 . 5 Storage 8 | 1 1 . . . 2 . . . . . . 1 . . . 1 . . 1 . 1 Processor 7 | . . . . . . . . 1 1 . . . . 1 . . . 1 . . 3 Hackware 1 | . . . . . . . . . . . . . . . . . . . . . 1 Protection 7 | . . . . . 2 . . . 1 . . 1 1 . . 1 . . 1 . . Artifact . | . . . . . . . . . . . . . . . . . . . . . . Weapon 38 | 2 . . . 1 6 . . 1 1 2 3 2 1 1 3 3 . . 7 . 5 Energy Gun 8 | 1 . . . . . . . . . . . 1 . . 1 . . . . . 5 Energy Cannon 1 | . . . . . . . . . . . . . . . 1 . . . . . . Ballistic Gun 17 | 1 . . . 1 4 . . 1 1 2 1 . 1 1 . 2 . . 2 . . Ballistic Cannon 6 | . . . . . 2 . . . . . . . . . . 1 . . 3 . . Launcher 2 | . . . . . . . . . . . . . . . . . . . 2 . . Special Weapon 3 | . . . . . . . . . . . 1 1 . . 1 . . . . . . Impact Weapon . | . . . . . . . . . . . . . . . . . . . . . . Slashing Weapon . | . . . . . . . . . . . . . . . . . . . . . . Piercing Weapon 1 | . . . . . . . . . . . 1 . . . . . . . . . . Special Melee Weapon . | . . . . . . . . . . . . . . . . . . . . . . Unidentified Prototypes 18 | . . . . . 1 . . . . . 3 6 . . . . . . 4 . 4 Parts Lost 31 | . . 2 . . . . 1 . 2 . . . 1 1 . 2 1 . . . 21 Power 6 | . . 1 . . . . . . . . . . . . . 1 . . . . 4 Propulsion 9 | . . 1 . . . . 1 . . . . . . . . . . . . . 7 Utility 4 | . . . . . . . . . 1 . . . 1 . . . . . . . 2 Weapon 12 | . . . . . . . . . 1 . . . . 1 . 1 1 . . . 8 Highest Loss Streak 10 | . . 2 . . . . 1 . 2 . . . 1 1 . 1 1 . . . 10 To Critical Strikes 3 | . . . . . . . . . . . . . . . . . . . . . 3 Average Backups 12 | 1 2 3 4 6 11 12 13 13 12 13 13 12 11 12 13 13 16 16 17 16 16 Power . | . 1 . . . . . 1 1 1 . . . 1 1 1 1 1 1 . 1 1 Propulsion 1 | . . . . . . 1 5 4 4 3 2 1 1 . . 1 1 1 . . 1 Utility 6 | . . 1 2 3 3 3 2 5 5 6 6 6 6 8 9 7 9 9 10 11 10 Weapon 2 | . 1 2 2 3 6 8 3 2 1 1 2 3 2 2 2 2 3 3 4 4 2 Tool/Special . | . . . . . . . . . . . . . . . . . . . . . . Unused Backups 38 | . . . . . 4 . 10 1 . 2 4 1 . 1 . 2 . . 5 . 8 Power 2 | . . . . . . . 1 . . . 1 . . . . . . . . . . Propulsion 8 | . . . . . . . 2 . . . . . . . . . . . . . 6 Utility 14 | . . . . . 1 . 1 1 . . 3 . . . . 2 . . 4 . 2 Weapon 14 | . . . . . 3 . 6 . . 2 . 1 . 1 . . . . 1 . . Tool/Special . | . . . . . . . . . . . . . . . . . . . . . . Average Slot Usage (%) 89 | . 100 90 85 86 93 98 98 99 99 100 98 99 99 94 87 83 87 88 83 82 52 Engine 7 | . 14 14 14 14 9 7 8 13 13 13 13 10 6 5 . . 5 5 2 . . Core 2 | . . . . . . 7 5 . . . . . . 3 5 5 11 11 6 . . Reactor 2 | . . . . . . . . . . . . 2 6 5 10 5 . . 3 11 5 Treads 26 | . 28 19 14 15 30 30 29 33 33 33 33 33 33 30 26 23 23 23 22 23 14 Device 9 | . 14 14 14 14 12 13 15 13 7 6 6 6 9 9 11 12 11 10 10 11 6 Storage 6 | . 14 14 14 14 9 7 7 6 6 6 6 6 6 5 5 5 5 5 5 5 5 Processor 2 | . . . . . . . . . 4 6 6 6 . . . . . . . . 2 Protection 4 | . . . . . 5 7 6 5 6 6 5 5 9 6 4 3 5 5 4 5 2 Energy Gun 1 | . 14 14 14 12 . . . . . . . . . . . . . . . . 3 Ballistic Gun 20 | . 14 14 14 15 22 23 23 25 25 26 24 25 26 22 15 20 18 17 13 23 9 Ballistic Cannon 1 | . . . . . 4 . . . . . . . . . . 2 3 5 8 . . Peak Build Rating 142 | 7 7 7 9 12 27 33 49 58 60 63 73 78 74 91 112 102 98 98 130 130 142 Average Rating 69 | 4 7 6 7 9 23 32 43 56 58 62 63 68 71 78 105 95 97 97 111 130 92 On Entrance 58 | . 7 7 6 9 12 27 33 49 57 60 63 67 71 68 91 101 97 97 97 130 130 Avg Prop Armor Cover (%) 5 | . . . . . . . 5 . . . . . . 5 . . . . . . . Naked Turns . | . . . . . . . . . . . . . . . . . . . . . . Heaviest Build 183 | 15 20 20 18 19 45 55 72 76 76 72 85 76 77 88 105 150 153 153 183 172 172 Greatest Support 224 | 40 40 40 20 43 83 83 83 100 100 100 100 100 100 149 194 194 194 194 194 194 224 Greatest Overweight (x) 26 | . . . . . . . 1 . . . . . . . . . . . . . 26 Average Overweight (x) . | . . . . . . . . . . . . . . . . . . . . . . Largest Inventory Capacity 25 | 8 10 10 10 10 15 15 15 15 15 15 15 15 15 15 15 25 25 25 25 25 25 Average Capacity 17 | 7 8 10 10 10 14 15 15 15 15 15 15 15 15 15 15 17 25 25 25 25 24 Most Carried 25 | 5 5 4 7 8 15 14 15 15 15 15 15 15 15 15 15 19 19 19 25 23 25 Average Carried 15 | 2 2 3 5 7 12 13 14 14 13 14 14 14 13 14 14 15 18 18 23 23 22 Final Capacity 25 | 8 10 10 10 10 15 15 15 15 15 15 15 15 15 15 15 25 25 25 25 25 25 Final Carried 23 | 2 4 4 7 7 15 13 15 15 14 15 15 15 14 15 15 18 18 18 23 23 19 Class Distribution -------------------- 45% | Tank 24% | Scavenger-Tank 13% | Mutant 5% | Skirmisher 5% | Scavenger-Skirmisher Dominant Class ---------------- Mutant | -10/Materials Mutant | -10/Mines Mutant | -10/Exiles Mutant | -9/Mines Scavenger-Skirmisher | -8/Materials Scavenger-Tank | -7/Factory Tank | -7/DSF Tank | -6/Factory Tank | -6/Lower Caves Tank | -6/Lower Caves Tank | -6/Zion Tank | -6/Deep Caves Tank | -5/Proximity Caves Skirmisher | -5/Factory Scavenger-Tank | -5/Waste Scavenger-Tank | -5/Factory Scavenger-Tank | -5/Upper Caves Scavenger-Tank | -5/Upper Caves Tank | -5/Warlord Scavenger-Tank | -4/Proximity Caves Scavenger-Tank | -4/Factory Resources | -11 -10 -10 -10 -9 -8 -7 -7 -6 -6 -6 -6 -6 -5 -5 -5 -5 -5 -5 -5 -4 -4 ----------- Run | Yrd Mat Min Exi Min Mat Fac DSF Fac Low Low Zio Dee Pro Fac Was Fac Upp Upp War Pro Fac Matter Collected 9195 | 248 97 75 . 20 677 . 443 410 1056 274 200 387 311 689 84 674 265 169 1417 361 1338 Remotely 772 | . . . . . 200 . 224 145 . . . . . . . 203 . . . . . Salvage Created 11825 | 84 190 90 . . 759 . 611 384 420 237 . 442 407 1034 1596 207 399 57 621 360 3927 Parts 458 | 6 12 3 . . 53 . 34 11 13 9 . 18 22 61 14 15 21 3 24 18 121 Haulers Intercepted 8 | . . . . . 4 . . . . . . . . 1 . 1 . . . . 2 Recyclers Shooed 9 | . . . . . 2 . . . . . . . . . . . . . . . 7 Parts Field Recycled . | . . . . . . . . . . . . . . . . . . . . . . Retrieved Matter . | . . . . . . . . . . . . . . . . . . . . . . Parts Self-Destructed 90 | . . . . . . . . . 13 9 . . 21 . . . 21 7 . 19 . Prevented . | . . . . . . . . . . . . . . . . . . . . . . Parts Restored . | . . . . . . . . . . . . . . . . . . . . . . Kills | -11 -10 -10 -10 -9 -8 -7 -7 -6 -6 -6 -6 -6 -5 -5 -5 -5 -5 -5 -5 -4 -4 ------- Run | Yrd Mat Min Exi Min Mat Fac DSF Fac Low Low Zio Dee Pro Fac Was Fac Upp Upp War Pro Fac Combat Hostiles Destroyed 150 | . 5 5 . . 12 . 12 6 7 4 . 12 9 9 6 2 5 1 11 4 40 Guns 96 | . 5 5 . . 7 . 12 6 7 4 . 4 9 9 . 2 4 . 6 4 12 Cannons 13 | . . . . . 5 . . . . . . . . . . . 1 1 5 . 1 AOE 28 | . . . . . . . . . . . . 8 . . . . . . . . 20 Classes Destroyed 25 | 2 4 1 . . 3 . 3 1 . 1 . 1 . 2 1 . 1 . 4 1 . Worker 7 | . . . . . . . . . . . . . . 4 . 1 . . . . 2 Builder 7 | . . . . . . . . . . . . . . 2 . 1 . . . . 4 Tunneler 2 | 1 . . . . . . . . . . . . . . . . . . . . 1 Hauler 8 | . . . . . 4 . . . . . . . . 1 . 1 . . . . 2 Recycler 12 | 1 . . . . 1 . . . . . . . . 2 . . . . . . 8 Operator 3 | . 1 . . . 1 . . . . . . . . . . 1 . . . . . Watcher 8 | . 2 . . . 3 . . . . . . . . 3 . . . . . . . Swarmer 20 | . 3 . . . 3 . 3 . 2 . . . 4 . . 1 2 1 1 . . Saboteur 1 | . . . . . . . . . . . . . . . . . . . 1 . . Grunt 55 | . 2 2 . . 4 . 6 4 2 2 . . 4 . . . 2 . 3 3 21 Brawler 4 | . . . . . . . . . . 1 . . . . . . . . 1 . 2 Duelist 2 | . . . . . 1 . . . 1 . . . . . . . . . . . . Protector 3 | . . . . . . . . . . . . . . . . . . . 1 . 2 Sentry 10 | . . . . . 4 . . 1 1 1 . . . 1 . . . . . . 2 Demolisher 1 | . . . . . . . . . . . . . . . . . . . 1 . . Specialist 3 | . . . . . . . 1 . . . . . . . . . . . . . 2 Hunter 10 | . . . . . . . 1 . 1 . . . 1 2 . . 1 . . . 4 Programmer 15 | . . . . . . . . 1 . . . . . 6 . 1 . . . . 7 Heavy 1 | . . . . . . . 1 . . . . . . . . . . . . . . Behemoth 1 | . . . . . . . . . . . . . . . . . . . . 1 . Compactor 6 | . . . . . . . . . . . . . . . 6 . . . . . . Striker 1 | . . . . . . . . . . . . . . . . . . . 1 . . Executioner 2 | . . . . . . . . . . . . . . . . . . . 2 . . Z-Light 9 | . . . . . . . . . . . . 9 . . . . . . . . . Assembled 6 | . . 3 . . . . . . . . . 3 . . . . . . . . . Thug 1 | . . . . . . . . . . . . . . . . . 1 . . . . Savage 1 | . . . . . . . . . . . . 1 . . . . . . . . . Butcher 1 | . . . . . . . . . . . . 1 . . . . . . . . . Martyr 2 | . . . . . . . . . . . . . . . . . 1 1 . . . Best Kill Streak 15 | 2 3 3 . . 8 . 4 3 3 3 . 6 4 10 2 4 4 1 5 3 15 Combat Bots Only 14 | . 3 3 . . 6 . 4 3 3 3 . 6 4 4 2 1 4 1 5 3 14 Max Kills in Single Turn 4 | 1 1 1 . . 1 . 1 2 2 1 . 2 2 2 2 2 2 1 3 1 4 Gunslinging 1 | . . . . . . . . 1 1 . . . 1 . . . . . . . . Exploded 4 | . . . . . . . . . . . . 2 . . . . . . . . 4 Melee . | . . . . . . . . . . . . . . . . . . . . . . Uniques/NPCs Destroyed 1 | . . . . . . . . . . . . 1 . . . . . . . . . Z-Imprinter (-6/Deep Caves) Combat | -11 -10 -10 -10 -9 -8 -7 -7 -6 -6 -6 -6 -6 -5 -5 -5 -5 -5 -5 -5 -4 -4 -------- Run | Yrd Mat Min Exi Min Mat Fac DSF Fac Low Low Zio Dee Pro Fac Was Fac Upp Upp War Pro Fac Hostile Shots Fired 1076 | . 28 27 . . 32 . 65 72 94 45 . 20 58 61 . 17 44 . 92 68 353 Missed 330 | . 5 10 . . 11 . 19 28 28 17 . 9 19 16 . 6 12 . 32 14 104 Hits 746 | . 23 17 . . 21 . 46 44 66 28 . 11 39 45 . 11 32 . 60 54 249 Melee 15 | . . . . . . . . . 4 . . 1 . . . 1 . . 8 . 1 Projectile 731 | . 23 17 . . 21 . 46 44 62 28 . 10 39 45 . 10 32 . 52 54 248 AOE 3 | . . . . . . . . . . . . . . . . . . . 3 . . Critical Strikes 37 | . . . . . . . 4 1 1 . . . 2 4 . 2 1 . 4 2 16 Actively Blocked 1 | . . . . . . . . . . . . . . . . . . . . . 1 Part Disruptions 3 | . . . . . . . . . . . . . . 2 . . . . . . 1 Damage Taken 12065 | . 258 238 . . 241 . 587 330 843 352 . 261 699 910 . 609 549 . 944 660 4584 Core 1771 | . 70 10 . . . . 29 26 20 29 . 33 76 21 . 40 36 . 71 51 1259 Absorbed by Shields 2820 | . . . . . . . 204 192 168 . . . . . . . . . 618 611 1027 Reduced by Siege Mode 3 | . . . . . . . . . . . . . . . . . . . 3 . . Ignored by Resistances 312 | . . . . . 15 . 115 27 89 . . . . . . . . . . . 66 Regen/Repaired (Parts) 716 | . . . . . . . . . . . 94 . . . 83 24 84 . 349 82 . Core Remaining (%) 86 | 100 . . . 68 100 . 95 . . . . . 78 . . . . . . 78 . Volleys Fired 459 | 5 26 17 . . 43 . 32 24 31 15 . 17 15 37 19 19 10 8 23 19 99 Largest 4 | 2 2 2 . . 3 . 3 4 4 4 . 4 4 4 1 4 4 4 4 4 4 Hottest 300 | 70 70 70 . . 97 . 69 99 104 114 . 121 121 121 250 126 133 133 161 141 300 Shots Fired 1349 | 10 51 34 . . 129 . 96 96 115 60 . 49 60 148 19 54 37 31 74 76 210 Gun 1228 | 10 51 34 . . 79 . 96 96 115 60 . 42 60 148 10 46 33 24 51 76 197 Cannon 105 | . . . . . 50 . . . . . . . . . 8 8 4 7 20 . 8 Launcher 4 | . . . . . . . . . . . . . . . . . . . 1 . 3 Special 12 | . . . . . . . . . . . . 7 . . 1 . . . 2 . 2 Kinetic 1222 | 5 26 17 . . 129 . 96 96 115 60 . 42 60 148 5 54 37 31 71 76 154 Thermal 111 | 5 25 17 . . . . . . . . . . . . 13 . . . . . 51 Explosive 12 | . . . . . . . . . . . . 7 . . 1 . . . 2 . 2 Electromagnetic 1 | . . . . . . . . . . . . . . . . . . . 1 . . Entropic 3 | . . . . . . . . . . . . . . . . . . . . . 3 Robot Hit Streak 31 | 4 14 8 . . 12 . 22 31 11 8 . 7 10 20 12 8 9 8 8 17 15 Robot Miss Streak 6 | 2 2 4 . . 6 . 5 6 3 2 . 2 3 4 3 2 2 3 3 2 6 Penetration Max 3 | . . . . . . . . . . . . . 1 2 . 1 3 . 3 1 1 Secondary Targets 24 | . 1 2 . . . . 3 2 3 . . 1 4 . . . 1 . 2 2 3 Max Gunslinging Chain 1 | . 1 1 . . . . 1 1 1 . . 1 1 . . . 1 . 1 1 1 Shots Hit Robots 880 | 6 31 22 . . 72 . 66 63 75 38 . 28 41 104 8 32 29 18 43 63 141 Core Hits 463 | 3 12 9 . . 31 . 30 18 21 13 . 25 18 40 2 14 17 7 23 19 161 Critical Kills 21 | . . . . . . . . 2 . . . . . . . . 4 1 9 1 4 Critical Parts Destroyed 30 | . . . . . . . . . 1 1 . . 2 . . . 3 . 7 6 10 Critical Strikes 63 | 1 1 2 . . . . . 2 1 1 . 2 2 . . . 7 1 16 9 18 Burn 7 | 1 1 2 . . . . . . . . . . . . . . . . . . 3 Destroy 53 | . . . . . . . . 2 1 1 . . 2 . . . 7 1 16 9 14 Sever 3 | . . . . . . . . . . . . 2 . . . . . . . . 1 Melee Attacks 1 | . . . . . . . . . . . 1 . . . . . . . . . . Impact . | . . . . . . . . . . . . . . . . . . . . . . Slashing . | . . . . . . . . . . . . . . . . . . . . . . Piercing 1 | . . . . . . . . . . . 1 . . . . . . . . . . Sneak Attacks . | . . . . . . . . . . . . . . . . . . . . . . Combat Hostiles . | . . . . . . . . . . . . . . . . . . . . . . Follow-up Attacks . | . . . . . . . . . . . . . . . . . . . . . . Damage Inflicted 26201 | 75 381 289 . . 1468 . 1057 1019 1191 729 . 1875 785 2579 588 821 572 372 1039 1436 9925 Guns 16093 | 75 381 272 . . 762 . 1057 1019 1191 729 . 467 785 2481 . 727 483 206 752 1436 3270 Cannons 1697 | . . . . . 706 . . . . . . . . . 212 87 89 166 287 . 150 Explosions 8058 | . . . . . . . . . . . . 1149 . 94 376 . . . . . 6439 Melee . | . . . . . . . . . . . . . . . . . . . . . . Ramming 28 | . . 17 . . . . . . . . . . . 4 . 7 . . . . . Kinetic 16265 | 38 195 148 . . 1468 . 1057 1019 1191 729 . 467 785 2481 . 814 572 372 1039 1436 2454 Thermal 5935 | 37 186 124 . . . . . . . . . . . . 588 . . . . . 5000 Explosive 1934 | . . . . . . . . . . . . 1149 . 94 . . . . . . 691 Electromagnetic . | . . . . . . . . . . . . . . . . . . . . . . Impact . | . . . . . . . . . . . . . . . . . . . . . . Slashing 325 | . . . . . . . . . . . . 259 . . . . . . . . 66 Piercing . | . . . . . . . . . . . . . . . . . . . . . . Entropic 1714 | . . . . . . . . . . . . . . . . . . . . . 1714 Highest Corruption 58 | . . . . . . . . 1 1 1 1 . . 7 51 58 58 58 58 . 7 Average Corruption 22 | . . . . . . . . 1 1 1 1 . . 4 30 52 58 58 58 . 2 Corruption Purged . | . . . . . . . . . . . . . . . . . . . . . . Corruption Blocked . | . . . . . . . . . . . . . . . . . . . . . . Effects 209 | . . . . . . . . 1 3 4 . . . 12 28 77 40 21 3 . 20 Message Errors 54 | . . . . . . . . 1 2 1 . . . 3 13 20 5 2 1 . 6 Matter Fused 41 | . . . . . . . . . 1 2 . . . 2 3 14 11 5 . . 3 Heat Flow Errors 25 | . . . . . . . . . . . . . . 2 5 6 6 3 . . 3 Energy Discharges 20 | . . . . . . . . . . 1 . . . 1 2 7 4 3 . . 2 Parts Rejected 1 | . . . . . . . . . . . . . . . . . . . . . 1 Parts Fused 3 | . . . . . . . . . . . . . . . 1 1 1 . . . . Data Loss (minor) 30 | . . . . . . . . . . . . . . 1 1 14 7 3 2 . 2 Data Loss (major) 6 | . . . . . . . . . . . . . . 2 1 . . 2 . . 1 Misfires 9 | . . . . . . . . . . . . . . 1 . 3 2 1 . . 2 Alerts 4 | . . . . . . . . . . . . . . . 2 1 1 . . . . Misdirections 1 | . . . . . . . . . . . . . . . . 1 . . . . . Weapon Failures 15 | . . . . . . . . . . . . . . . . 10 3 2 . . . Overload Shots . | . . . . . . . . . . . . . . . . . . . . . . Overflow Damage 272 | . . . . . 29 . . . . . . 75 . . . . . 10 . . 158 Projectiles 69 | . . . . . 29 . . . . . . 30 . . . . . 10 . . . Explosions 203 | . . . . . . . . . . . . 45 . . . . . . . . 158 Melee . | . . . . . . . . . . . . . . . . . . . . . . Knockbacks 8 | . . . . . 4 . . . . . . . . . . . 2 2 . . . Impact . | . . . . . . . . . . . . . . . . . . . . . . Kinetic 8 | . . . . . 4 . . . . . . . . . . . 2 2 . . . Secondary . | . . . . . . . . . . . . . . . . . . . . . . Self-Inflicted Damage 1001 | . . . . . . . . . . . . . . . . . . . 12 . 989 Shots 42 | . . . . . . . . . . . . . . . . . . . 1 . 41 Rammed 4 | . . 2 . . . . . . . . . . . 1 . 1 . . . . . Targets Rammed 5 | . . 2 . . . . . . . . . . . 1 . 2 . . . . . Kicked . | . . . . . . . . . . . . . . . . . . . . . . Crushed 1 | . . . . . . . . . . . . . . . . 1 . . . . . Highest Temperature 723 | 18 183 174 . . 1 . 241 . 2 4 . 36 223 261 558 213 218 229 198 197 723 Average Temperature 88 | 9 54 65 . . 1 . 103 . 2 1 . 15 81 53 154 71 67 47 31 93 139 Received Heat Transfer 2369 | . 102 84 . . 45 . 187 118 206 144 . 54 201 27 . 21 108 . 186 150 736 Effects 16 | . . . . . . . . . . . . . 1 1 2 . 1 . . . 11 Shutdowns 5 | . . . . . . . . . . . . . . . 2 . . . . . 3 Energy Bleed 4 | . . . . . . . . . . . . . 1 1 . . . . . . 2 Interference 3 | . . . . . . . . . . . . . . . . . 1 . . . 2 Matter Decay 2 | . . . . . . . . . . . . . . . . . . . . . 2 Short Circuit 1 | . . . . . . . . . . . . . . . . . . . . . 1 Damage (core) 1 | . . . . . . . . . . . . . . . . . . . . . 1 Siege Activations 2 | . . . . . . . . . . . . . . . . . . . 1 1 . Total Turns 23 | . . . . . . . . . . . . . . . . . . . 1 22 . Longest Duration 22 | . . . . . . . . . . . . . . . . . . . 1 22 . Martial Activations . | . . . . . . . . . . . . . . . . . . . . . . Shielding Activations . | . . . . . . . . . . . . . . . . . . . . . . Robots Disrupted . | . . . . . . . . . . . . . . . . . . . . . . Combat Hostiles . | . . . . . . . . . . . . . . . . . . . . . . Robots Corrupted . | . . . . . . . . . . . . . . . . . . . . . . Combat Hostiles . | . . . . . . . . . . . . . . . . . . . . . . Parts Fried . | . . . . . . . . . . . . . . . . . . . . . . Impact Corruptions . | . . . . . . . . . . . . . . . . . . . . . . Robots Melted 13 | . . . . . . . . . . . . . . . 6 . . . . . 7 Combat Hostiles 13 | . . . . . . . . . . . . . . . 6 . . . . . 7 Parts Melted 58 | . 1 . . . . . 3 . . . . . 1 . 14 . . . 1 . 38 Heat Transferred 13430 | 185 629 518 . . . . . . . . . . . . 2560 . . . . . 9538 Parts Sabotaged 7 | . . . . . . . . . . . . . . . . . . . 4 . 3 Parts Stolen . | . . . . . . . . . . . . . . . . . . . . . . Parts Stripped . | . . . . . . . . . . . . . . . . . . . . . . Power Chain Reactions 1 | . . . . . . . . . . . . . . . . . . . 1 . . Alert | -11 -10 -10 -10 -9 -8 -7 -7 -6 -6 -6 -6 -6 -5 -5 -5 -5 -5 -5 -5 -4 -4 ------- Run | Yrd Mat Min Exi Min Mat Fac DSF Fac Low Low Zio Dee Pro Fac Was Fac Upp Upp War Pro Fac Maximum Alert Level 3 | . . . . . . . 1 . . . . . . 1 . 2 . . . . 3 Low Security (%) 75 | 100 100 100 . 100 100 100 91 100 . . . . . 15 100 70 . . . . 49 Level 1 15 | . . . . . . . 8 . . . . . . 84 . 21 . . . . 4 Level 2 2 | . . . . . . . . . . . . . . . . 8 . . . . 4 Level 3 7 | . . . . . . . . . . . . . . . . . . . . . 42 Level 4 . | . . . . . . . . . . . . . . . . . . . . . . Level 5 . | . . . . . . . . . . . . . . . . . . . . . . High Security . | . . . . . . . . . . . . . . . . . . . . . . Max Security . | . . . . . . . . . . . . . . . . . . . . . . Sterilizations 1 | . . . . . . . 1 . . . . . . . . . . . . . . Peak Influence 909 | 5 60 40 . . 115 2 265 138 . . . . . 354 109 678 . . . . 909 Initial 138 | . . . . . . 2 . 138 . . . . . 49 109 . . . . . . Average 143 | . 14 3 . . 47 . 112 37 . . . . . 229 21 157 . . . . 393 Influence Increases 5888 | 10 139 50 . . 378 . 285 167 165 90 . . 210 683 16 1286 354 153 245 102 1555 Destroy 0b10 Robot/C 3100 | . 100 40 . . 240 . 240 120 140 80 . . 180 180 . 420 200 120 200 80 760 Destroy 0b10 Robot/NC 275 | 10 15 . . . 45 . 5 . 5 . . . . 60 . 35 . . 5 . 95 Destroy Leader 638 | . 24 10 . . 64 . 40 30 20 10 . . 30 78 . 118 30 10 . 20 154 Allied During Kill 696 | . . . . . . . . . . . . . . . . 537 124 23 10 2 . Successful Hack 49 | . . . . . 14 . . 2 . . . . . 24 . . . . . . 9 Disable Machine 420 | . . . . . . . . 15 . . . . . 255 . . . . . . 150 Anti-Garrison Action 150 | . . . . . . . . . . . . . . . . . . . . . 150 Destroy Structure 515 | . . . . . 15 . . . . . . . . 86 16 176 . . . . 222 Lose Combat Pursuer 45 | . . . . . . . . . . . . . . . . . . . 30 . 15 Influence Decreases 4979 | 10 139 50 . . 371 7 20 419 178 90 . . 132 449 328 1054 419 232 158 277 646 Entered New Map 751 | . . . . . . 5 . 127 5 . . . . 29 203 . 87 32 88 175 . Time Decay 3248 | 10 139 50 . . 371 2 . 292 153 90 . . 122 410 125 414 302 180 60 92 436 Lost Part 290 | . . . . . . . 10 . 20 . . . 10 10 . 20 10 . . . 210 Lost Ally 240 | . . . . . . . 10 . . . . . . . . 170 20 20 10 10 . Purge Threat 450 | . . . . . . . . . . . . . . . . 450 . . . . . Squads Dispatched 27 | . 1 . . . . . 1 2 . . . . . 3 . 6 . . . . 14 Investigation 2 | . . . . . . . . . . . . . . 1 . . . . . . 1 Extermination 8 | . . . . . . . . 1 . . . . . 2 . 2 . . . . 3 Reinforcement 12 | . 1 . . . . . 1 1 . . . . . . . 3 . . . . 6 Assault 3 | . . . . . . . . . . . . . . . . . . . . . 3 Garrison 2 | . . . . . . . . . . . . . . . . 1 . . . . 1 Intercept . | . . . . . . . . . . . . . . . . . . . . . . Searches Triggered . | . . . . . . . . . . . . . . . . . . . . . . Construction Impeded 4 | . . . . . . . . . . . . . . . . 2 . . . . 2 Haulers Reinforced 2 | . . . . . . . . . . . . . . . . . . . . . 2 Active Scanning Responses . | . . . . . . . . . . . . . . . . . . . . . . Cargo Convoy Interrupts . | . . . . . . . . . . . . . . . . . . . . . . Stealth | -11 -10 -10 -10 -9 -8 -7 -7 -6 -6 -6 -6 -6 -5 -5 -5 -5 -5 -5 -5 -4 -4 --------- Run | Yrd Mat Min Exi Min Mat Fac DSF Fac Low Low Zio Dee Pro Fac Was Fac Upp Upp War Pro Fac Distress Signals 6 | . . . . . 2 . . . . . . . . 3 . 1 . . . . . Communications Jammed . | . . . . . . . . . . . . . . . . . . . . . . Distress Signals . | . . . . . . . . . . . . . . . . . . . . . . Times Spotted 253 | . 8 5 . . 17 . 12 9 7 4 . 14 9 18 4 28 10 6 49 5 48 Peak Tracking Total 12 | . 3 2 . . 4 . 4 4 3 3 . 6 4 4 2 5 5 2 12 4 10 Tactical Retreats 3 | . . . . . . . . . . . . . . . . . . . 2 . 1 Traps | -11 -10 -10 -10 -9 -8 -7 -7 -6 -6 -6 -6 -6 -5 -5 -5 -5 -5 -5 -5 -4 -4 ------- Run | Yrd Mat Min Exi Min Mat Fac DSF Fac Low Low Zio Dee Pro Fac Was Fac Upp Upp War Pro Fac Traps Triggered 5 | . . . . . . . 1 . . . . . . 1 . 2 . . 1 . . Indirectly . | . . . . . . . . . . . . . . . . . . . . . . Trap Hack Attempts . | . . . . . . . . . . . . . . . . . . . . . . Triggered . | . . . . . . . . . . . . . . . . . . . . . . Disarmed . | . . . . . . . . . . . . . . . . . . . . . . Reprogrammed . | . . . . . . . . . . . . . . . . . . . . . . Reused . | . . . . . . . . . . . . . . . . . . . . . . Traps Extracted . | . . . . . . . . . . . . . . . . . . . . . . Installed . | . . . . . . . . . . . . . . . . . . . . . . Triggered . | . . . . . . . . . . . . . . . . . . . . . . Machines | -11 -10 -10 -10 -9 -8 -7 -7 -6 -6 -6 -6 -6 -5 -5 -5 -5 -5 -5 -5 -4 -4 ---------- Run | Yrd Mat Min Exi Min Mat Fac DSF Fac Low Low Zio Dee Pro Fac Was Fac Upp Upp War Pro Fac Machines Disabled 31 | . . . . . . . . 1 . . . . . 17 . . . . 2 . 11 Max in Single Turn 6 | . . . . . . . . 1 . . . . . 6 . . . . 1 . 2 Garrison Access 1 | . . . . . . . . . . . . . . . . . . . . . 1 Machines Repaired . | . . . . . . . . . . . . . . . . . . . . . . Machines Dismantled . | . . . . . . . . . . . . . . . . . . . . . . Machines Sabotaged . | . . . . . . . . . . . . . . . . . . . . . . Overloaded Fab Kills . | . . . . . . . . . . . . . . . . . . . . . . Hacking | -11 -10 -10 -10 -9 -8 -7 -7 -6 -6 -6 -6 -6 -5 -5 -5 -5 -5 -5 -5 -4 -4 --------- Run | Yrd Mat Min Exi Min Mat Fac DSF Fac Low Low Zio Dee Pro Fac Was Fac Upp Upp War Pro Fac Machines Accessed 23 | . 1 . 2 1 4 1 . 2 1 . . . . 6 . . . . 1 . 4 Terminals 10 | . . . . . 3 1 . . . . . . . 4 . . . . . . 2 Fabricators 1 | . . . . . . . . . . . . . . 1 . . . . . . . Repair Stations . | . . . . . . . . . . . . . . . . . . . . . . Recycling Units 3 | . 1 . . . 1 . . . . . . . . . . . . . . . 1 Scanalyzers 3 | . . . . . . . . 2 . . . . . 1 . . . . . . . Garrison Access 1 | . . . . . . . . . . . . . . . . . . . . . 1 Total Hacks 50 | . 1 . 2 1 7 1 . 5 1 . . . . 10 . . . . 1 . 21 Successful 22 | . 1 . 2 1 3 1 . 2 1 . . . . 2 . . . . 1 . 8 Failed 27 | . . . . . 4 . . 2 . . . . . 8 . . . . . . 13 Catastrophic 7 | . . . . . 1 . . . . . . . . 2 . . . . . . 4 Database Lockouts 1 | . . . . . . . . 1 . . . . . . . . . . . . . Manual 16 | . . . 1 . . . . . . . 4 . . 3 . . . . . . 8 Terminals 25 | . . . . . 6 1 . . . . . . . 6 . . . . . . 12 Fabricators 1 | . . . . . . . . . . . . . . 1 . . . . . . . Repair Stations . | . . . . . . . . . . . . . . . . . . . . . . Recycling Units 8 | . 1 . . . 1 . . . . . . . . . . . . . . . 6 Scanalyzers 8 | . . . . . . . . 5 . . . . . 3 . . . . . . . Garrison Access 3 | . . . . . . . . . . . . . . . . . . . . . 3 Terminal Hacks 15 | . . . 2 1 3 1 . . 1 . . . . . . . . . 1 . 6 Record 1 | . . . 1 . . . . . . . . . . . . . . . . . . Prototype ID Bank 1 | . . . . . . . . . . . . . . . . . . . . . 1 Open Door 3 | . . . . 1 . . . . 1 . . . . . . . . . 1 . . Open DSF 1 | . . . . . . 1 . . . . . . . . . . . . . . . Level Access Points 1 | . . . . . . . . . . . . . . . . . . . . . 1 Branch Access Points 1 | . . . . . . . . . . . . . . . . . . . . . 1 Hauler Manifests 1 | . . . . . . . . . . . . . . . . . . . . . 1 Registered Components 1 | . . . . . . . . . . . . . . . . . . . . . 1 Registered Prototypes 1 | . . . . . 1 . . . . . . . . . . . . . . . . Zone Layout 3 | . . . . . 2 . . . . . . . . . . . . . . . 1 Proto ID Catalog 1 | . . . 1 . . . . . . . . . . . . . . . . . . Fabricator Hacks . | . . . . . . . . . . . . . . . . . . . . . . Repair Station Hacks . | . . . . . . . . . . . . . . . . . . . . . . Recycling Unit Hacks 3 | . 1 . . . . . . . . . . . . . . . . . . . 2 Retrieve Components 3 | . 1 . . . . . . . . . . . . . . . . . . . 2 Scanalyzer 4 | . . . . . . . . 2 . . . . . 2 . . . . . . . Retrieve Study 4 | . . . . . . . . 2 . . . . . 2 . . . . . . . Garrison Access Hacks . | . . . . . . . . . . . . . . . . . . . . . . Unauthorized Hacks . | . . . . . . . . . . . . . . . . . . . . . . Terminals . | . . . . . . . . . . . . . . . . . . . . . . Fabricators . | . . . . . . . . . . . . . . . . . . . . . . Repair Stations . | . . . . . . . . . . . . . . . . . . . . . . Recycling Units . | . . . . . . . . . . . . . . . . . . . . . . Scanalyzers . | . . . . . . . . . . . . . . . . . . . . . . Garrison Access . | . . . . . . . . . . . . . . . . . . . . . . Data Cores Recovered . | . . . . . . . . . . . . . . . . . . . . . . Used . | . . . . . . . . . . . . . . . . . . . . . . Hacking Detections 15 | . 1 . . . 3 1 . 1 . . . . . 6 . . . . . . 3 Full Trace Events 2 | . . . . . . . . . . . . . . 1 . . . . . . 1 Feedback Events 1 | . . . . . . . . . . . . . . 1 . . . . . . . Corruption 1 | . . . . . . . . . . . . . . 1 . . . . . . . Feedback Blocked . | . . . . . . . . . . . . . . . . . . . . . . Robot Schematics Acquired 3 | . . . . . . . . . . . 3 . . . . . . . . . . Robots Built . | . . . . . . . . . . . . . . . . . . . . . . Authchips . | . . . . . . . . . . . . . . . . . . . . . . Time . | . . . . . . . . . . . . . . . . . . . . . . Total Robot Build Rating . | . . . . . . . . . . . . . . . . . . . . . . Part Schematics Acquired 16 | . . . . . . . . . . . 16 . . . . . . . . . . Parts Built . | . . . . . . . . . . . . . . . . . . . . . . Authchips . | . . . . . . . . . . . . . . . . . . . . . . Time . | . . . . . . . . . . . . . . . . . . . . . . Total Part Build Rating . | . . . . . . . . . . . . . . . . . . . . . . Part Studies Acquired 4 | . . . . . . . . 2 . . . . . 2 . . . . . . . Parts Repaired . | . . . . . . . . . . . . . . . . . . . . . . Time . | . . . . . . . . . . . . . . . . . . . . . . Parts Recycled . | . . . . . . . . . . . . . . . . . . . . . . Recycled Matter . | . . . . . . . . . . . . . . . . . . . . . . Retrieved Matter . | . . . . . . . . . . . . . . . . . . . . . . Retrieved Components 23 | . 3 . . . . . . . . . . . . . . . . . . . 20 Parts Scanalyzed . | . . . . . . . . . . . . . . . . . . . . . . Part Schematics Acquired . | . . . . . . . . . . . . . . . . . . . . . . Parts Damaged . | . . . . . . . . . . . . . . . . . . . . . . Bothacking | -11 -10 -10 -10 -9 -8 -7 -7 -6 -6 -6 -6 -6 -5 -5 -5 -5 -5 -5 -5 -4 -4 ------------ Run | Yrd Mat Min Exi Min Mat Fac DSF Fac Low Low Zio Dee Pro Fac Was Fac Upp Upp War Pro Fac Used RIF Installer . | . . . . . . . . . . . . . . . . . . . . . . Robots Hacked . | . . . . . . . . . . . . . . . . . . . . . . Non-combat . | . . . . . . . . . . . . . . . . . . . . . . Combat . | . . . . . . . . . . . . . . . . . . . . . . Robot Hacks Applied . | . . . . . . . . . . . . . . . . . . . . . . Relay Couplers Released 3 | . . . . . . . . . . . . . . . . . . . . . 3 Machine Destruction 3 | . . . . . . . . . . . . . . . . . . . . . 3 Fabnet Peak Effective % . | . . . . . . . . . . . . . . . . . . . . . . Robots Rewired 2 | . . . . . . 1 . . . . . . . . . . . . 1 . . Allies Hacked . | . . . . . . . . . . . . . . . . . . . . . . Hacks Repelled . | . . . . . . . . . . . . . . . . . . . . . . Allies | -11 -10 -10 -10 -9 -8 -7 -7 -6 -6 -6 -6 -6 -5 -5 -5 -5 -5 -5 -5 -4 -4 -------- Run | Yrd Mat Min Exi Min Mat Fac DSF Fac Low Low Zio Dee Pro Fac Was Fac Upp Upp War Pro Fac Total Allies 30 | . . . . . . 1 . . . . 9 . . . 19 . . . 1 . . Largest Group 19 | . . . . . . 1 1 . . . 9 9 . . 19 19 8 4 3 2 1 Highest-Rated Group 702 | . . . . . . 40 40 . . . 230 230 . . 702 702 314 149 116 88 64 Highest-Rated Ally 64 | . . . . . . 40 40 . . . 31 31 . . 50 50 50 50 64 64 64 Initial Warlord ECA Mod 9 | . . . . . . . . 9 9 9 9 9 8 8 8 8 3 3 3 2 2 Warlord Squad Rendezvous 5 | . . . . . . . . . . . . . . . . 5 . . . . . Dakka 1 | . . . . . . . . . . . . . . . . 1 . . . . . Geek 1 | . . . . . . . . . . . . . . . . 1 . . . . . Ranger 1 | . . . . . . . . . . . . . . . . 1 . . . . . Pyro 1 | . . . . . . . . . . . . . . . . 1 . . . . . Ghost 1 | . . . . . . . . . . . . . . . . 1 . . . . . Total Orders 10 | . . . . . . . . . . . . . . . . 8 . . . . 2 RETURN 10 | . . . . . . . . . . . . . . . . 8 . . . . 2 Ally Attacks 159 | . . . . . . . . . . . . 47 . . . 88 16 8 . . . Total Damage 5605 | . . . . . . . . . . . . 1620 . . . 2896 600 489 . . . Kills 46 | . . . . . . . . . . . . 11 . . . 24 6 5 . . . Allies Corrupted 1 | . . . . . . . . . . . . . . . . 1 . . . . . Allies Melted 2 | . . . . . . . . . . . . 2 . . . . . . . . . Intel | -11 -10 -10 -10 -9 -8 -7 -7 -6 -6 -6 -6 -6 -5 -5 -5 -5 -5 -5 -5 -4 -4 ------- Run | Yrd Mat Min Exi Min Mat Fac DSF Fac Low Low Zio Dee Pro Fac Was Fac Upp Upp War Pro Fac Active Infowar (turns) 8817 | 12 469 525 510 488 395 . . . 1012 762 1993 1837 . 1 . . . . . . 813 Optics 6418 | . . . . . . . . . 1012 762 1993 1837 . 1 . . . . . . 813 Seismic 2399 | 12 469 525 510 488 395 . . . . . . . . . . . . . . . . Robot Analysis Total . | . . . . . . . . . . . . . . . . . . . . . . Derelict Logs Recovered 9 | . . . . 1 . . . . 2 2 1 . 1 . . . 1 . . 1 . Drone Launches 10 | . . . . . . . . . . . . . . . . 8 . . . . 2 Drone Recoveries 10 | . . . . . . . . . . . . . . . . 8 . . . . 2 Exploration | -11 -10 -10 -10 -9 -8 -7 -7 -6 -6 -6 -6 -6 -5 -5 -5 -5 -5 -5 -5 -4 -4 ------------- Run | Yrd Mat Min Exi Min Mat Fac DSF Fac Low Low Zio Dee Pro Fac Was Fac Upp Upp War Pro Fac Turns Passed 18547 | 90 469 525 510 488 1039 41 489 877 1253 762 1993 1837 575 1075 607 1224 660 360 1422 681 1570 Spaces Moved 9310 | 49 238 294 318 296 527 23 174 448 667 411 1104 978 304 515 304 563 369 190 737 349 452 Core 19 | 16 . . . . . . . . . . . . . . . . . . . . 3 Treads 9291 | 33 238 294 318 296 527 23 174 448 667 411 1104 978 304 515 304 563 369 190 737 349 449 Legs . | . . . . . . . . . . . . . . . . . . . . . . Wheels . | . . . . . . . . . . . . . . . . . . . . . . Hover . | . . . . . . . . . . . . . . . . . . . . . . Flight . | . . . . . . . . . . . . . . . . . . . . . . Fastest Speed 50 | 50 160 160 160 160 160 160 160 170 170 170 170 170 170 167 165 165 165 165 163 165 161 Average Speed 168 | 124 160 160 160 160 160 160 168 170 170 170 170 170 170 169 165 165 165 165 164 165 217 Slowest Speed 1350 | 160 160 160 160 160 160 160 250 170 170 170 170 170 170 170 168 165 165 165 165 165 1350 Overloaded Moves . | . . . . . . . . . . . . . . . . . . . . . . Propulsion Burnouts . | . . . . . . . . . . . . . . . . . . . . . . Robots Hopped . | . . . . . . . . . . . . . . . . . . . . . . Potential Cave-ins . | . . . . . . . . . . . . . . . . . . . . . . Cave-ins Triggered . | . . . . . . . . . . . . . . . . . . . . . . Exploration Rate (%) 55 | 4 51 58 69 71 46 . 92 13 88 74 88 83 52 14 93 18 65 26 88 59 11 Regions Visited 21 Branch Regions 12 Pre-discovered Areas 3 | . . . 1 1 . . . . 1 . . . . . . . . . . . . Known Exits Taken 7 | . . . . . . 1 . 1 . . . . 1 . . 1 1 1 . 1 . Unknown Exits Taken 11 | 1 1 1 1 1 1 . . . 1 1 1 1 . . . . . . 1 . . Scrap Searched 20 | . . . . 2 . . . . 2 11 . . 1 . . . 3 1 . . . Spaces Dug 27 | . . . . . . . . . . . . . . . 22 1 . . 4 . . Terrain Destroyed 356 | . . . . . 15 . . . . . . 40 2 38 22 2 2 2 26 14 193 Melee . | . . . . . . . . . . . . . . . . . . . . . . Projectile 86 | . . . . . 15 . . . . . . 1 2 . 1 2 . 2 11 14 38 AOE 266 | . . . . . . . . . . . . 39 . 38 21 . . . 14 . 154 Terrain Rammed . | . . . . . . . . . . . . . . . . . . . . . . Walls Destroyed . | . . . . . . . . . . . . . . . . . . . . . . Machines Disabled . | . . . . . . . . . . . . . . . . . . . . . . Actions | -11 -10 -10 -10 -9 -8 -7 -7 -6 -6 -6 -6 -6 -5 -5 -5 -5 -5 -5 -5 -4 -4 --------- Run | Yrd Mat Min Exi Min Mat Fac DSF Fac Low Low Zio Dee Pro Fac Was Fac Upp Upp War Pro Fac Total 11208 | 68 275 314 319 311 631 27 306 505 715 441 1218 1120 327 632 390 809 396 217 899 407 881 Wait 848 | . 7 . . 11 . . 48 13 7 . 66 73 . 54 43 178 16 16 65 40 211 Move 9290 | 48 237 293 317 295 526 22 173 447 666 410 1103 977 303 515 303 562 368 189 736 348 452 Hop . | . . . . . . . . . . . . . . . . . . . . . . Pick Up 164 | 8 3 1 2 2 26 . 17 5 4 6 9 10 2 6 3 10 1 1 20 . 28 Fast Attach 43 | 1 . . . . . . 1 2 . . 10 12 . 2 5 3 . . 5 . 2 Attach 91 | 6 . 1 . 2 7 2 1 2 3 . . 3 2 3 3 2 1 1 10 . 42 Detach 19 | . . . . . . . . . . . . . . . . . . . 2 . 17 Swap 108 | . 1 . . . 12 . 12 6 1 4 10 8 2 6 4 24 . 1 8 . 9 Drop 171 | . 1 . . 1 17 . 22 6 3 6 19 20 3 8 10 9 . 1 24 . 21 Fire 459 | 5 26 17 . . 43 . 32 24 31 15 . 17 15 37 19 19 10 8 23 19 99 Melee 1 | . . . . . . . . . . . 1 . . . . . . . . . . Ram . | . . . . . . . . . . . . . . . . . . . . . . Kick . | . . . . . . . . . . . . . . . . . . . . . . Crush 5 | . . 2 . . . . . . . . . . . 1 . 2 . . . . . Escape Stasis . | . . . . . . . . . . . . . . . . . . . . . . Rewire 9 | . . . . . . 3 . . . . . . . . . . . . 6 . . Trap . | . . . . . . . . . . . . . . . . . . . . . . Miscellaneous . | . . . . . . . . . . . . . . . . . . . . . . Route ------- -11/Scrapyard -10/Materials (discovered 3 exits: [*Mat x2] / [*Min]) -10/Mines (discovered 2 exits: [*Mat] / *Exi) -10/Exiles -9/Mines -8/Materials -7/Factory -7/DSF -6/Factory -6/Lower Caves -6/Lower Caves (discovered 2 exits: Fac / *Zio) -6/Zion (discovered 2 exits: [*Dee] / [*Pro]) -6/Deep Caves -5/Proximity Caves -5/Factory -5/Waste -5/Factory (discovered 6 exits: *Fac x4 / *Upp x2) -5/Upper Caves -5/Upper Caves -5/Warlord -4/Proximity Caves -4/Factory (discovered 7 exits: Res x4 / Upp x2 / Arm) History --------- Turn | Location | Event 2 | -11/Scrapyard | Met Revision 17 48 | -11/Scrapyard | Discovered new exit (range 12) 91 | -11/Scrapyard | Entered Materials 203 | -10/Materials | Discovered new exit (range 4) 309 | -10/Materials | Build established: Mutant 345 | -10/Materials | Discovered new exit (range 14) 453 | -10/Materials | Discovered new exit (range 6) 560 | -10/Materials | Entered Mines 731 | -10/Mines | Assembled infested the area 758 | -10/Mines | Discovered new exit (range 3) 1077 | -10/Mines | Deemed a non-threat by the Exiles lab entrance 1079 | -10/Mines | Discovered new exit (range 5) 1085 | -10/Mines | Entered Exiles 1124 | -10/Exiles | Met 8R-AWN 1151 | -10/Exiles | Met EX-HEX 1220 | -10/Exiles | Met EX-DEC 1247 | -10/Exiles | Learned location of Zion (-6) 1368 | -10/Exiles | Met EX-BIN 1390 | -10/Exiles | Aligned with FarCom system 1392 | -10/Exiles | Given EX-Vault access code 1429 | -10/Exiles | Opened EX-Vault 1445 | -10/Exiles | Found Firepult 1479 | -10/Exiles | Warned to stay clear of 0b10 Research branches 1579 | -10/Exiles | Discovered new exit (range 10) 1595 | -10/Exiles | Left Exiles lab with Firepult 1595 | -10/Exiles | Entered Mines 1686 | -9/Mines | Met a Derelict who couldn't figure out how to use a Trap Extractor 2070 | -9/Mines | Learned location of Storage (-9) 2070 | -9/Mines | Discovered new exit (range 9) 2083 | -9/Mines | Entered Materials 2083 | -8/Materials | Evolved 4 slots: Propulsion x2, Utility x1, Weapon x1 2347 | -8/Materials | Discovered new exit (range 10) 2658 | -8/Materials | Build established: Scavenger-Skirmisher 3122 | -8/Materials | Entered Factory 3122 | -7/Factory | Evolved 2 slots: Power x1, Utility x1 3128 | -7/Factory | Identified exit to DSF 3163 | -7/Factory | Entered DSF 3163 | -7/DSF | Accompanied by 1 ally 3210 | -7/DSF | Additional patrols routed to DSF 3297 | -7/DSF | Discovered new exit (range 13) 3503 | -7/DSF | Build established: Tank 3549 | -7/DSF | Sterilization system engaged 3569 | -7/DSF | Ambient heat levels rising (+10) 3584 | -7/DSF | Ambient heat levels rising (+10) 3599 | -7/DSF | Ambient heat levels rising (+10) 3614 | -7/DSF | Ambient heat levels rising (+10) 3629 | -7/DSF | Ambient heat levels rising (+10) 3644 | -7/DSF | Ambient heat levels rising (+10) 3652 | -7/DSF | Entered Factory 3652 | -6/Factory | Evolved 2 slots: Propulsion x1, Weapon x1 3931 | -6/Factory | Central database locked down 4220 | -6/Factory | Discovered new exit (range 16) 4528 | -6/Factory | Identified exit to Lower Caves 4529 | -6/Factory | Entered Lower Caves 4535 | -6/Lower Caves | Met a Warlord Commander 4536 | -6/Lower Caves | Learned location of Warlord (-5) 4537 | -6/Lower Caves | Warlord Commander delivered Encrypted Comm Array 4545 | -6/Lower Caves | Found Encrypted Comm Array 4579 | -6/Lower Caves | Attracted the attention of an 0b10 checkpoint 4651 | -6/Lower Caves | Learned Factory emergency access door positions 5482 | -6/Lower Caves | Discovered new exit (range 20) 5497 | -6/Lower Caves | Learned Factory emergency access door positions 5782 | -6/Lower Caves | Entered another Lower Caves area 6005 | -6/Lower Caves | Identified exit to Factory 6034 | -6/Lower Caves | Attracted the attention of an 0b10 checkpoint 6118 | -6/Lower Caves | Encountered a Warlord checkpoint 6387 | -6/Lower Caves | Discovered new exit (range 17) 6436 | -6/Lower Caves | Learned location of 1 exit from Lower Caves 6544 | -6/Lower Caves | Entered Zion 6599 | -6/Zion | System corruption cleaned by Quarantine Array 6728 | -6/Zion | Acquired unknown access codes intercepted by a Zionite 6809 | -6/Zion | Discovered new exit (range 14) 6926 | -6/Zion | Learned Factory terminal intel 7222 | -6/Zion | Given the Hacking Drone Bay 7222 | -6/Zion | Found Prototype Device 7222 | -6/Zion | Identified Hacking Drone Bay 7372 | -6/Zion | Found CR-A16's Pointy Stick 7542 | -6/Zion | Found GAL Module 7583 | -6/Zion | Rebuked by Imprinter 7799 | -6/Zion | Learned Factory emergency access door positions 8046 | -6/Zion | Found Prototype Device 8047 | -6/Zion | Identified Phasing AFG 8152 | -6/Zion | Found Prototype Special Weapon 8152 | -6/Zion | Identified RU-N14's Throwing Claymores 8170 | -6/Zion | Found RU-N14's Throwing Claymores 8178 | -6/Zion | Found RU-N14's Throwing Claymores 8191 | -6/Zion | Found RU-N14's Throwing Claymores 8275 | -6/Zion | Gained Derelict followers 8306 | -6/Zion | Gained Derelict followers 8467 | -6/Zion | Opened final containment barrier to the Deep Caves 8493 | -6/Zion | Discovered new exit (range 3) 8493 | -6/Zion | Saw the warning signs outside the Deep Caves entrance 8537 | -6/Zion | Entered Deep Caves 8537 | -6/Deep Caves | Accompanied by 9 allies 8853 | -6/Deep Caves | Attacked by Z-Imprinter 8878 | -6/Deep Caves | Allies destroyed Z-Imprinter 8898 | -6/Deep Caves | Found Prototype Device 8898 | -6/Deep Caves | Identified Zio. Metafield Generator 8925 | -6/Deep Caves | Lost 5 allies 9012 | -6/Deep Caves | Z-Facility disabled 9047 | -6/Deep Caves | Lost 3 allies 9202 | -6/Deep Caves | Found Prototype Protection 9202 | -6/Deep Caves | Identified Zio. Weapon Casing 9720 | -6/Deep Caves | Found Zio. Weapon Casing 9938 | -6/Deep Caves | Discovered new exit (range 6) 10222 | -6/Deep Caves | Spotted AG-49572 10261 | -6/Deep Caves | Found Superbattery 10374 | -6/Deep Caves | Entered Proximity Caves 10871 | -5/Proximity Caves | Discovered exit to Factory (range 12) 10906 | -5/Proximity Caves | Learned Factory stockpile data 10949 | -5/Proximity Caves | Entered Factory 10949 | -5/Factory | Evolved 2 slots: Power x1, Propulsion x1 10952 | -5/Factory | Loaded intel: 26 terminal locations 10985 | -5/Factory | Build established: Derelict-Tank 11460 | -5/Factory | Build established: Skirmisher 12024 | -5/Factory | Sucked down chute 12024 | -5/Factory | Entered Waste 12039 | -5/Waste | EMP discharged 12039 | -5/Waste | System corruption reached 10% 12078 | -5/Waste | Spotted C-40 Crusher 12092 | -5/Waste | Destroyed C-40 Crusher 12139 | -5/Waste | EMP discharged 12168 | -5/Waste | Spotted C-40 Crusher 12169 | -5/Waste | Destroyed C-40 Crusher 12169 | -5/Waste | Destroyed C-40 Crusher 12191 | -5/Waste | Spotted C-40 Crusher 12201 | -5/Waste | Destroyed C-40 Crusher 12201 | -5/Waste | Spotted C-40 Crusher 12205 | -5/Waste | Destroyed C-40 Crusher 12239 | -5/Waste | EMP discharged 12316 | -5/Waste | Spotted C-40 Crusher 12321 | -5/Waste | Destroyed C-40 Crusher 12339 | -5/Waste | EMP discharged 12339 | -5/Waste | System corruption reached 30% 12353 | -5/Waste | Discovered new exit (range 16) 12404 | -5/Waste | Build established: Scavenger-Tank 12439 | -5/Waste | EMP discharged 12512 | -5/Waste | Met Warlord forces unprepared to attack 12539 | -5/Waste | EMP discharged 12631 | -5/Waste | Entered Factory 12631 | -5/Factory | Accompanied by 19 allies 12689 | -5/Factory | Joined by Warlord Pyro squad 12885 | -5/Factory | Lost 3 allies 13014 | -5/Factory | Joined by Warlord Geek squad 13038 | -5/Factory | Identified exit to Factory 13335 | -5/Factory | Identified exit to Upper Caves 13440 | -5/Factory | Joined by Warlord Ranger squad 13564 | -5/Factory | Joined by Warlord Ghost squad 13751 | -5/Factory | Joined by Warlord Dakka squad 13763 | -5/Factory | Garrison activated, responded to threat 13855 | -5/Factory | Entered Upper Caves 13855 | -5/Upper Caves | Accompanied by 8 allies 13884 | -5/Upper Caves | Identified exit to Upper Caves 13923 | -5/Upper Caves | Encountered a Warlord checkpoint 14055 | -5/Upper Caves | Lost 4 allies 14515 | -5/Upper Caves | Entered another Upper Caves area 14515 | -5/Upper Caves | Accompanied by 4 allies 14573 | -5/Upper Caves | Discovered new exit (range 15) 14595 | -5/Upper Caves | Attracted the attention of an 0b10 checkpoint 14810 | -5/Upper Caves | Identified exit to Warlord 14875 | -5/Upper Caves | Entered Warlord 14875 | -5/Warlord | Accompanied by 2 allies 14930 | -5/Warlord | System corruption cleaned by Quarantine Array 15100 | -5/Warlord | Found Prototype Energy Gun 15459 | -5/Warlord | Found Prototype Reactor 15461 | -5/Warlord | Identified Vortex Chain Reactor 15471 | -5/Warlord | Found Prototype Hackware 15480 | -5/Warlord | Found Prototype Processor 15484 | -5/Warlord | Found Prototype Device 15489 | -5/Warlord | Identified Ghost Barrier 15504 | -5/Warlord | Build established: Tank 15548 | -5/Warlord | Identified Spectral Analyzer 15566 | -5/Warlord | Identified Plasma Storm 15588 | -5/Warlord | Identified Thermal Barrier 15644 | -5/Warlord | Met Warlord 15649 | -5/Warlord | Warlord's base attacked by MAIN.C 15798 | -5/Warlord | Found Prototype Launcher 15800 | -5/Warlord | Identified Vortex Catalyst Activator 15999 | -5/Warlord | Warlord forces counterattacked 16019 | -5/Warlord | Spotted Executioner 16023 | -5/Warlord | Destroyed Executioner 16073 | -5/Warlord | Spotted Striker 16123 | -5/Warlord | Spotted Executioner 16123 | -5/Warlord | Spotted Executioner 16135 | -5/Warlord | Spotted Striker 16139 | -5/Warlord | Destroyed Executioner 16180 | -5/Warlord | Lost 18 allies 16196 | -5/Warlord | Found Prototype Processor 16199 | -5/Warlord | Spotted Striker 16225 | -5/Warlord | Spotted Executioner 16227 | -5/Warlord | Destroyed Striker 16254 | -5/Warlord | Discovered new exit (range 14) 16297 | -5/Warlord | Entered Proximity Caves 16297 | -4/Proximity Caves | Accompanied by 2 allies 16359 | -4/Proximity Caves | Spotted B-86 Titan 16388 | -4/Proximity Caves | Destroyed B-86 Titan 16533 | -4/Proximity Caves | Build established: Scavenger-Tank 16635 | -4/Proximity Caves | Learned Research trap positions 16651 | -4/Proximity Caves | Received a Behemoth hack from an annoying Tinkerer 16929 | -4/Proximity Caves | Discovered exit to Factory (range 3) 16978 | -4/Proximity Caves | Entered Factory 16978 | -4/Factory | Accompanied by 1 ally 16978 | -4/Factory | Evolved 2 slots: Propulsion x1, Weapon x1 17413 | -4/Factory | P-70 Sage assimilated allied Archangel 6a 17803 | -4/Factory | Garrison activated, responded to threat 17825 | -4/Factory | Identified Exp. Core Analyzer 17851 | -4/Factory | Destroyed 14 combat bots 17854 | -4/Factory | Lost 10 parts (2p4n1u3w) 17890 | -4/Factory | Core integrity fell below 50% 17978 | -4/Factory | First assault squad dispatched 18100 | -4/Factory | Build established: Mutant 18294 | -4/Factory | Identified exit to Upper Caves 18294 | -4/Factory | Identified exit to Armory 18294 | -4/Factory | Identified exit to Research 18492 | -4/Factory | Core integrity fell below 20% 18543 | -4/Factory | Lost 5 parts (2n3w) 18549 | -4/Factory | Core destroyed Last Messages --------------- 18545_ ALERT: Construction progress impeded, dispatching reinforcements to local area. 18545_ A-15 Conveyor calls for reinforcements. 18545_ ALERT: Hostile activity reported, dispatching reinforcements to area. 18546_ Power failure, Imp. Quantum Reactor shutdown. 18546_ Firepult emits an uncontrolled burst of heat. 18546_ Several Firepult components seem to have fused. 18546_ Destroyed Tesla Rifle. 18546_ P-70 Sage critical meltdown. 18546_ Antigrav System melted. 18546_ Mic. Fission Core melted. 18546_ Hpw. Shock Rifle melted. 18546_ Transport Network Coupler melted. 18546_ Med. Treads melted. 18546_ A-15 Conveyor destroyed. 18547_ Power failure, Antimatter Reactor shutdown. 18548_ K-01 Serf collects debris. 18548_ Dropped Firepult. 18549_ Overheating: Core damaged (-230). Map ----- +----------------------------------------------------+ | ?????????????????????????????????????????????????? | | ?????????????????????????????????????????????????? | | ?????????????????????????????????????????????????? | | ?????????????????????????????????????????????????? | | #????????????????????????????????????????????????? | | ?????????????????????????????????????????? | | #????????????????????????????????????????????????? | | ?????????????????????????????????????????????????? | | ????????????????????????####???# # ??????????? | | ????????????????????????????#### ######??????????? | | #######?????????????????????# #??????????? | | #?????????????????????# #??????????? | | ##????????????????????# #??????????? | | "#????????????????????# #??????????? | | "##???????????????????# > #??????????? | | " #???????????????????# #??????????? | | "##???????????????????# #??????????? | | % " #???????????????????# #??????????? | | " #???????????????????# #??????????? | | "##???????????????????### ###??????????? | | ##+#####?#######????#######???# #????????????? | | ##### #????# #???# #????????????? | | ! ######% ]#???# #????????????? | | T %% %!!]/#???# #????????????? | | ###### [[=!#???# #????????????? | | ##### =p #????#[=%[@#??## ##???????????? | | % #?#####+#########[!%##??# #???????????? | | #?# #?#[!k##### #???????????? | | #?# """"""""" #?#[[ #???????????? | | #?# #?# T #???????????? | | #?# """"""""" #?# #???????????? | | ### #?## ###### #???????????? | | + """"""""" #??# #????# #???????????? | | #### #?## ######## ####??????????? | | ##+################### # # # ??????????? | | """"""" + i T + + + ??????????? | | """"""" ########### # # # ??????????? | | """"""" #??????#####+## # # ??????????? | | """"""" #??????# # ## ## ??????????? | | #?????????? ????????????????????????? | | #??????????" ????????????????????????? | | #??????????"?!????????????????????????? | | ##############????????"? ????????????????????????? | | ####### # ##????????? ????????????????????????? | | # #??????????????????????????????????? | | *% # #??????????????????????????????????? | | !=#! #??????????????????????????????????? | | #= #??????????????????????????????????? | | # #??????????????????????????????????? | | "" # ###???????????????????"""??????????? | +----------------------------------------------------+ Best States ------------- Heat Dissipation 91 Energy Generation 77 Energy Capacity 1940 Matter Stores 300 Matter Capacity 300 Sight Range 24 Terrain Scan Density 10 Armor Coverage 450 Resistance: KI 20 Resistance: TH 50 Phase Shifting 15 Evasion (%) 55 Targeting Accuracy 20 Core Analysis 8 Recoil Reduction 7 Defensive Hacking 20 Item Schematics ----------------- Phase Cannon | -6/Zion | Archive Point Defense System | -6/Zion | Archive Adv. Heat Sink | -6/Zion | Archive Field Propulsion Drive | -6/Zion | Archive Imp. Hardlight Generator | -6/Zion | Archive Adv. Cooling System | -6/Zion | Archive Power Amplifier | -6/Zion | Archive Adv. Thermal Shield | -6/Zion | Archive Phase Gun | -6/Zion | Archive Nuclear Pulse Thruster | -6/Zion | Archive Imp. Recalibrator | -6/Zion | Archive Fusion Compressor | -6/Zion | Archive Imp. Remote Datajack | -6/Zion | Archive Lrn. Tractor Beam | -6/Zion | Archive Force Field | -6/Zion | Archive HERF Cannon | -6/Zion | Archive Robot Schematics ------------------ D-53 Grenadier | -6/Zion | Archive B-48 Gladiator | -6/Zion | Archive H-66 Slayer | -6/Zion | Archive Fabricated ------------ Nothing Repaired ---------- Nothing Studied --------- Gauss Rifle | -6/Factory | Hacked Arm. Treads | -6/Factory | Hacked Coil Gun | -5/Factory | Hacked Gauss Cannon | -5/Factory | Hacked Alien Tech Used ----------------- None Achievements -------------- Squad Leader Challenges ------------ None Game ------ Seed GravmagSystemNullifier Manual? 0 Play Time 02:05:55 Cumulative 653.1 hours Start 2026.01.22 @ 14:32:31 End 2026.01.23 @ 12:00:52 Sessions 6 Manual Loads 0 Difficulty Rogue Special Mode None Game No. 823 Rogue 823 Adventurer 0 Explorer 0 Win Type - Total 24 Types 11/1/3/3/2/0/2/2/0/0 Lore% 96 Gallery% 92 Achievement% 81 Wizard Run 0 Options --------- Layout 0 ASCII 0 Keyboard 0 Movement Mouse Keybinds 0 Fullscreen 1 Font 24/Terminus Map View 76x50 Zoom Use 0% Tactical HUD 1 Map Filters NONE Filters NONE Steam 1 RUN: 66371c12-b06c-43a6-b82e-4deea3e8daa8